fUST/lending_fUST_20240128
["ID","MTS","AMOUNT","RATE_DAILY","PERIOD"]
[312906201,1706452240435,-500.0,0.00021917,2]
[312906202,1706452240444,-500.0,0.00021917,2]
[312906203,1706452240454,-439.95497627,0.00021917,2]
[312906204,1706452240463,-500.0,0.00021917,2]
[312906205,1706452240472,-500.0,0.00021917,2]
[312906206,1706452240551,-500.0,0.00021917,2]
[312906207,1706452240560,-500.0,0.00021917,2]
[312906208,1706452240569,-1987.98,0.00021917,2]
[312906209,1706452240579,-367.80667092,0.00021917,2]
[312906210,1706452240589,-500.0,0.00021917,2]
[312906211,1706452240598,-500.0,0.00021917,2]
[312906212,1706452240608,-500.0,0.00021917,2]
[312906213,1706452240616,-500.0,0.00021917,2]
[312906214,1706452240626,-500.0,0.00021917,2]
[312906215,1706452240635,-500.0,0.00021917,2]
[312906216,1706452240644,-500.0,0.00021917,2]
[312906217,1706452240653,-500.0,0.00021917,2]
[312906218,1706452240662,-500.0,0.00021917,2]
[312906219,1706452240671,-897.64,0.00021917,2]
[312906220,1706452240680,-5529.41,0.00021917,2]
[312906221,1706452240689,-500.0,0.00021917,2]
[312906222,1706452240698,-500.0,0.00021917,2]
[312906223,1706452240707,-500.0,0.00021917,2]
[312906224,1706452240716,-500.0,0.00021917,2]
[312906225,1706452240725,-1757.48,0.00021917,2]
[312906226,1706452240734,-500.0,0.00021917,2]
[312906227,1706452240743,-500.0,0.00021917,2]
[312906228,1706452240752,-557.08,0.00021917,2]
[312906229,1706452240761,-153.33165401,0.00021917,2]
[312906230,1706452240771,-500.0,0.00021917,2]
[312906231,1706452240780,-500.0,0.00021917,2]
[312906232,1706452240789,-500.0,0.00021917,2]
[312906233,1706452240798,-500.0,0.00021917,2]
[312906234,1706452240807,-500.0,0.00021917,2]
[312906235,1706452240816,-500.0,0.00021917,2]
[312906236,1706452240825,-500.0,0.00021917,2]
[312906237,1706452240834,-527.14,0.00021917,2]
[312906238,1706452240843,-500.0,0.00021917,2]
[312906239,1706452240852,-560.74,0.00021917,2]
[312906240,1706452240861,-500.0,0.00021917,2]
[312906241,1706452240870,-500.0,0.00021917,2]
[312906242,1706452240879,-500.0,0.00021917,2]
[312906243,1706452240888,-1390.76,0.00021917,2]
[312906244,1706452240897,-500.0,0.00021917,2]
[312906245,1706452240906,-500.0,0.00021917,2]
[312906246,1706452240916,-500.0,0.00021917,2]
[312906247,1706452240924,-270.96680179,0.00021917,2]
[312906248,1706452240933,-500.0,0.00021917,2]
[312906249,1706452240943,-500.0,0.00021917,2]
[312906250,1706452240952,-500.0,0.00021917,2]
[312906251,1706452240961,-2618.59,0.00021917,2]
[312906252,1706452240970,-500.0,0.00021917,2]
[312906253,1706452240979,-1828.36,0.00021917,2]
[312906254,1706452240988,-500.0,0.00021917,2]
[312906255,1706452240997,-500.0,0.00021917,2]
[312906256,1706452241006,-500.0,0.00021917,2]
[312906257,1706452241015,-500.0,0.00021917,2]
[312906258,1706452241024,-500.0,0.00021917,2]
[312906259,1706452241033,-819.23,0.00021917,2]
[312906260,1706452241042,-906.05,0.00021917,2]
[312906261,1706452241051,-500.0,0.00021917,2]
[312906262,1706452241061,-500.0,0.00021917,2]
[312906263,1706452241069,-500.0,0.00021917,2]
[312906264,1706452241079,-500.0,0.00021917,2]
[312906265,1706452241088,-500.0,0.00021917,2]
[312906266,1706452241097,-2156.52,0.00021917,2]
[312906267,1706452241106,-1781.92,0.00021917,2]
[312906268,1706452241115,-156.42516188,0.00021917,2]
[312906269,1706452241125,-1024.81,0.00021917,2]
[312906270,1706452241134,-500.0,0.00021917,2]
[312906271,1706452241143,-500.0,0.00021917,2]
[312906272,1706452241152,-500.0,0.00021917,2]
[312906273,1706452241161,-500.0,0.00021917,2]
[312906274,1706452241170,-500.0,0.00021917,2]
[312906275,1706452241180,-500.0,0.00021917,2]
[312906276,1706452241189,-500.0,0.00021917,2]
[312906278,1706452241198,-500.0,0.00021917,2]
[312906279,1706452241207,-500.0,0.00021917,2]
[312906280,1706452241216,-500.0,0.00021917,2]
[312906281,1706452241226,-500.0,0.00021917,2]
[312906282,1706452241234,-500.0,0.00021917,2]
[312906283,1706452241243,-535.6646005,0.00021917,2]
[312906285,1706452241253,-500.0,0.00021917,2]
[312906286,1706452241262,-1181.84,0.00021917,2]
[312906287,1706452241271,-500.0,0.00021917,2]
[312906288,1706452241281,-2219.22,0.00021917,2]
[312906289,1706452241290,-500.0,0.00021917,2]
[312906290,1706452241299,-875.19,0.00021917,2]
[312906291,1706452241311,-1161.91,0.00021917,2]
[312906292,1706452241320,-1219.28,0.00021917,2]
[312906293,1706452241330,-500.0,0.00021917,2]
[312906294,1706452241339,-11221.03,0.00021917,2]
[312906295,1706452241350,-500.0,0.00021917,2]
[312906296,1706452241359,-5403.66,0.00021917,2]
[312906298,1706452241368,-2872.15,0.00021917,2]
[312906299,1706452241376,-500.0,0.00021917,2]
[312906300,1706452241387,-500.0,0.00021917,2]
[312906301,1706452241396,-500.0,0.00021917,2]
[312906302,1706452241405,-500.0,0.00021917,2]
[312906303,1706452241414,-2383.88,0.00021917,2]
[312906304,1706452241423,-500.0,0.00021917,2]
[312906305,1706452241432,-500.0,0.00021917,2]
[312906306,1706452241442,-500.0,0.00021917,2]
[312906307,1706452241451,-624.72253014,0.00021917,2]
[312906308,1706452241460,-981.65,0.00021917,2]
[312906309,1706452241470,-500.0,0.00021917,2]
[312906310,1706452241480,-500.0,0.00021917,2]
[312906311,1706452241489,-932.43,0.00021917,2]
[312906312,1706452241498,-500.0,0.00021917,2]
[312906313,1706452241508,-511.32578597,0.00021917,2]
[312906314,1706452241517,-500.0,0.00021917,2]
[312906315,1706452241526,-500.0,0.00021917,2]
[312906316,1706452241536,-500.0,0.00021917,2]
[312906317,1706452241545,-500.0,0.00021917,2]
[312906318,1706452241554,-3837.4,0.00021917,2]
[312906319,1706452241563,-511.78379089,0.00021917,2]
[312906320,1706452241573,-500.0,0.00021917,2]
[312906321,1706452241582,-500.0,0.00021917,2]
[312906322,1706452241591,-2484.13,0.00021917,2]
[312906323,1706452241600,-1079.66,0.00021917,2]
[312906324,1706452241609,-270.49445318,0.00021917,2]
[312906325,1706452241618,-503.02,0.00021917,2]
[312906326,1706452241628,-500.0,0.00021917,2]
[312906327,1706452241636,-500.0,0.00021917,2]
[312906328,1706452241645,-500.0,0.00021917,2]
[312906329,1706452241654,-4590.51,0.00021917,2]
[312906330,1706452241663,-595.27101256,0.00021917,2]
[312906331,1706452241671,-152.51532776,0.00021917,2]
[312906332,1706452241680,-1904.58,0.00021917,2]
[312906333,1706452241689,-1369.41,0.00021917,2]
[312906334,1706452241698,-500.0,0.00021917,2]
[312906335,1706452241707,-1000.0,0.00021917,2]
[312906336,1706452241716,-743.92,0.00021917,2]
[312906337,1706452241725,-25598.93,0.00021917,2]
[312906338,1706452241733,-500.0,0.00021917,2]
[312906339,1706452241742,-500.0,0.00021917,2]
[312906340,1706452241750,-500.0,0.00021917,2]
[312906341,1706452241759,-500.0,0.00021917,2]
[312906342,1706452241768,-13379.08,0.00021917,2]
[312906343,1706452241777,-3142.84,0.00021917,2]
[312906344,1706452241786,-4034.25,0.00021917,2]
[312906345,1706452241795,-440.63457018,0.00021917,2]
[312906346,1706452241804,-500.0,0.00021917,2]
[312906347,1706452241813,-500.0,0.00021917,2]
[312906348,1706452241823,-1060.82,0.00021917,2]
[312906349,1706452241833,-500.0,0.00021917,2]
[312906350,1706452241842,-753.94,0.00021917,2]
[312906351,1706452241851,-500.0,0.00021917,2]
[312906352,1706452241924,-507.11,0.00021917,2]
[312906353,1706452241933,-500.0,0.00021917,2]
[312906354,1706452241942,-500.0,0.00021917,2]
[312906355,1706452241951,-193.33149398,0.00021917,2]
[312906356,1706452241960,-476.67319883,0.00021917,2]
[312906357,1706452241969,-500.0,0.00021917,2]
[312906358,1706452241978,-500.0,0.00021917,2]
[312906359,1706452241987,-684.57,0.00021917,2]
[312906360,1706452241996,-2299.17,0.00021917,2]
[312906361,1706452242005,-45051.2,0.00021917,2]
[312906362,1706452242014,-309.87023148,0.00021917,2]
[312906363,1706452242023,-508.20795299,0.00021917,2]
[312906364,1706452242032,-500.0,0.00021917,2]
[312906365,1706452242041,-517.12179365,0.00021917,2]
[312906366,1706452242050,-500.0,0.00021917,2]
[312906367,1706452242059,-2118.36,0.00021917,2]
[312906368,1706452242068,-508.85286137,0.00021917,2]
[312906369,1706452242078,-500.0,0.00021917,2]
[312906370,1706452242087,-200.72682926,0.00021917,2]
[312906371,1706452242096,-500.0,0.00021917,2]
[312906372,1706452242106,-500.0,0.00021917,2]
[312906373,1706452242115,-500.0,0.00021917,2]
[312906374,1706452242124,-586.16320171,0.00021917,2]
[312906375,1706452242134,-12183.68,0.00021917,2]
[312906376,1706452242143,-500.0,0.00021917,2]
[312906377,1706452242152,-500.0,0.00021917,2]
[312906378,1706452242160,-500.0,0.00021917,2]
[312906379,1706452242169,-500.0,0.00021917,2]
[312906380,1706452242178,-16516.83,0.00021917,2]
[312906381,1706452242188,-500.0,0.00021917,2]
[312906382,1706452242197,-500.0,0.00021917,2]
[312906383,1706452242206,-500.0,0.00021917,2]
[312906384,1706452242215,-500.0,0.00021917,2]
[312906385,1706452242224,-500.0,0.00021917,2]
[312906386,1706452242233,-17321.76,0.00021917,2]
[312906387,1706452242242,-11556.0,0.00021917,2]
[312906388,1706452242251,-915.71,0.00021917,2]
[312906389,1706452242261,-1768.69,0.00021917,2]
[312906390,1706452242270,-4805.58488772,0.00021917,2]
[312906391,1706452242286,-10202.84952288,0.00021917,2]
[312906392,1706452242302,-5560.53321401,0.00021917,2]
[312906396,1706452243454,-155.01240099,0.00015621,2]
[312906397,1706452243464,-179.08321251,0.00015621,2]
[312906398,1706452243473,-620.0257606,0.00015621,2]
[312906399,1706452243482,-1399.68397104,0.00021917,2]
[312906413,1706452246459,-766.82144687,0.00021917,2]
[312906414,1706452246802,-4831.55205187,0.00021917,2]
[312906422,1706452451449,200.0,0.00021603,7]
[312906423,1706452498101,151.01057074,0.00028802,120]
[312906425,1706452712862,151.01359122,0.00028526,120]
[312906427,1706452752674,280.0,0.00022072,7]
[312906430,1706452851888,-155.01240099,0.00017569,2]
[312906431,1706452851918,-295.19469564,0.0001757,2]
[312906432,1706452851947,-155.01240099,0.0001757,2]
[312906433,1706452851975,-155.01240099,0.0001757,2]
[312906434,1706452852003,-155.01240099,0.0001757,3]
[312906435,1706452852031,-155.01240099,0.0001757,2]
[312906436,1706452852059,-155.01240099,0.00017571,2]
[312906437,1706452852087,-1027.23252462,0.00017571,2]
[312906438,1706452852113,-904.55199849,0.00017571,2]
[312906439,1706452852141,-155.01240099,0.00017571,2]
[312906440,1706452852168,-8447.93397432,0.00017572,2]
[312906442,1706453119747,155.01240099,0.0001667,3]
[312906443,1706453220144,151.01057074,0.00028731,30]
[312906445,1706453423436,155.01240099,0.00016673,3]
[312906471,1706453432483,-155.01240099,0.0001455,2]
[312906473,1706453432492,-155.01240099,0.00014551,2]
[312906475,1706453432502,-155.01240099,0.00014552,2]
[312906477,1706453432511,-155.01240099,0.00014553,2]
[312906479,1706453432520,-610.11643401,0.00014554,2]
[312906480,1706453432532,-684.78952509,0.00014554,2]
[312906482,1706453432541,-261.37401822,0.00014554,2]
[312906483,1706453432550,-302.2469024,0.00014555,2]
[312906486,1706453432559,-1583.63642507,0.00014555,2]
[312906489,1706453432580,-770.72880891,0.00014555,2]
[312906510,1706453438539,-978.95259375,0.0001455,2]
[312906511,1706453438549,-2817.80173688,0.00014553,2]
[312906512,1706453438558,-17530.04150617,0.00014555,2]
[312906513,1706453438567,-18921.17730606,0.00014555,2]
[312906514,1706453438576,-20892.43059927,0.00014556,2]
[312906515,1706453438586,-199.40706309,0.00014556,2]
[312906516,1706453438595,-785.6606918,0.00014558,2]
[312906517,1706453438603,-3000.0,0.00014582,2]
[312906518,1706453438613,-155.01240099,0.00015,2]
[312906519,1706453438624,-680.7197232,0.00015588,2]
[312906520,1706453438633,-24900.0,0.00015604,2]
[312906521,1706453438644,-810.100425,0.00015614,2]
[312906522,1706453438653,-535.71086689,0.00016673,2]
[312906523,1706453438662,-903.43498229,0.00016674,2]
[312906524,1706453438671,-200.0,0.00017138,2]
[312906525,1706453438681,-280.0,0.00018851,2]
[312906526,1706453438689,-1584.05603829,0.00019,2]
[312906527,1706453438702,-159.726977,0.00019178,2]
[312906528,1706453438711,-167.886141,0.00019178,2]
[312906529,1706453438720,-155.01240099,0.00019537,3]
[312906530,1706453438729,-640.33253099,0.00019817,2]
[312906531,1706453438738,-164.93249697,0.0001986,2]
[312906532,1706453438749,-3329.55509929,0.0001996,2]
[312906533,1706453438758,-679.47851073,0.00020735,2]
[312906534,1706453438767,-391.0,0.00020737,2]
[312906535,1706453438777,-594.54384953,0.00020925,2]
[312906536,1706453438787,-204.97919819,0.00021,2]
[312906537,1706453438796,-495.05930133,0.00021056,5]
[312906538,1706453438805,-325.9281118,0.00021096,2]
[312906539,1706453438813,-681.16936443,0.00021346,2]
[312906540,1706453438823,-153.0,0.00021352,2]
[312906541,1706453438832,-4105.76443808,0.00021491,2]
[312906542,1706453438841,-9135.28,0.00021687,3]
[312906543,1706453438852,-8284.64,0.00021697,3]
[312906544,1706453438861,-166.80502533,0.00021707,2]
[312906545,1706453438870,-244.93862789,0.00021707,2]
[312906546,1706453438879,-156.61472977,0.00021707,2]
[312906547,1706453438889,-155.17453603,0.00021707,2]
[312906548,1706453438898,-155.14514716,0.00021707,2]
[312906549,1706453438907,-155.02116883,0.00021707,2]
[312906550,1706453438916,-171.95327391,0.00021707,2]
[312906551,1706453438925,-155.23562869,0.00021707,2]
[312906552,1706453438934,-179.40761383,0.00021707,2]
[312906553,1706453438943,-155.26019958,0.00021707,2]
[312906554,1706453438952,-155.05425932,0.00021707,2]
[312906555,1706453438961,-155.49597422,0.00021707,2]
[312906556,1706453438970,-155.03565572,0.00021707,2]
[312906557,1706453438979,-608.61746145,0.00021707,2]
[312906558,1706453438988,-1650.91924153,0.00021707,2]
[312906559,1706453438997,-174.80040735,0.00021707,2]
[312906560,1706453439006,-295.85139672,0.00021707,2]
[312906561,1706453439017,-155.53778898,0.00021707,2]
[312906562,1706453439026,-186.69551028,0.00021707,2]
[312906563,1706453439035,-1084.36447655,0.00021707,2]
[312906564,1706453439044,-234.51335855,0.00021707,2]
[312906565,1706453439053,-303.44835747,0.00021708,2]
[312906566,1706453439062,-332.55741511,0.00021708,2]
[312906567,1706453439071,-297.37206321,0.00021708,2]
[312906568,1706453439080,-631.76705224,0.00021708,2]
[312906569,1706453439090,-166.53940446,0.00021708,2]
[312906570,1706453439099,-156.10206713,0.00021708,2]
[312906571,1706453439108,-2040.63936826,0.00021708,2]
[312906572,1706453439118,-617.65278222,0.00021709,2]
[312906573,1706453439127,-155.04185758,0.00021709,2]
[312906574,1706453439137,-529.85752993,0.00021709,2]
[312906575,1706453439146,-1701.22189287,0.00021709,2]
[312906576,1706453439155,-7694.8099639,0.00021709,2]
[312906577,1706453439165,-175.82941029,0.00021709,2]
[312906578,1706453439174,-180.04943139,0.00021709,2]
[312906579,1706453439183,-664.83975927,0.00021709,2]
[312906580,1706453439192,-176.08530781,0.00021709,2]
[312906581,1706453439201,-524.26984222,0.00021709,2]
[312906582,1706453439210,-161.1289327,0.00021709,2]
[312906583,1706453439219,-601.13424439,0.00021709,2]
[312906584,1706453439228,-156.12657933,0.00021709,2]
[312906585,1706453439237,-488.79378483,0.00021709,2]
[312906586,1706453439247,-3846.91233817,0.00021709,2]
[312906587,1706453439256,-1249.38994865,0.00021709,2]
[312906588,1706453439266,-214.33046875,0.00021709,2]
[312906589,1706453439275,-191.036015,0.00021709,2]
[312906590,1706453439284,-4102.47868551,0.00021709,2]
[312906591,1706453439293,-1221.37698036,0.00021709,2]
[312906592,1706453439302,-242.39341789,0.00021709,2]
[312906593,1706453439311,-7966.81883748,0.00021709,2]
[312906594,1706453439320,-584.41678114,0.00021709,2]
[312906595,1706453439329,-1199.39136189,0.00021709,2]
[312906596,1706453439338,-309.87768605,0.00021709,2]
[312906597,1706453439347,-265.25547221,0.0002171,2]
[312906598,1706453439356,-879.16574352,0.0002171,2]
[312906599,1706453439367,-68027.9095828,0.0002171,2]
[312906600,1706453439376,-200.89934999,0.0002171,2]
[312906601,1706453439385,-276000.0,0.00021711,2]
[312906602,1706453439394,-5000.0,0.00021811,2]
[312906603,1706453439404,-50000.0,0.00021811,2]
[312906604,1706453439413,-50818.95413048,0.00021811,2]
[312906605,1706453439423,-5000.0,0.00021811,2]
[312906606,1706453439433,-37480.03079176,0.00021811,2]
[312906607,1706453439443,-2105.7958969,0.00021916,2]
[312906608,1706453439452,-500.0,0.00021916,2]
[312906609,1706453439461,-500.0,0.00021916,2]
[312906610,1706453439470,-500.0,0.00021916,2]
[312906611,1706453439479,-500.0,0.00021916,2]
[312906612,1706453439488,-500.0,0.00021916,2]
[312906613,1706453439497,-500.0,0.00021916,2]
[312906614,1706453439505,-337.70440343,0.00021916,2]
[312906615,1706453439514,-500.0,0.00021916,2]
[312906616,1706453439523,-500.0,0.00021916,2]
[312906617,1706453439532,-500.0,0.00021916,2]
[312906618,1706453439541,-500.0,0.00021916,2]
[312906619,1706453439550,-647.02207258,0.00021916,2]
[312906620,1706453439559,-500.0,0.00021916,2]
[312906621,1706453439568,-634.03071431,0.00021916,2]
[312906622,1706453439577,-156.35796755,0.00021916,2]
[312906623,1706453439586,-425.31454102,0.00021916,2]
[312906624,1706453439595,-500.0,0.00021916,2]
[312906625,1706453439604,-500.0,0.00021916,2]
[312906626,1706453439613,-500.0,0.00021916,2]
[312906627,1706453439623,-500.0,0.00021916,2]
[312906628,1706453439632,-500.0,0.00021916,2]
[312906629,1706453439641,-500.0,0.00021916,2]
[312906630,1706453439650,-500.0,0.00021916,2]
[312906631,1706453439660,-500.0,0.00021916,2]
[312906632,1706453439669,-500.0,0.00021916,2]
[312906633,1706453439678,-500.0,0.00021916,2]
[312906634,1706453439687,-500.0,0.00021916,2]
[312906635,1706453439698,-500.0,0.00021916,2]
[312906636,1706453439708,-500.0,0.00021916,2]
[312906637,1706453439717,-500.0,0.00021916,2]
[312906638,1706453439727,-500.0,0.00021916,2]
[312906639,1706453439736,-450.11338084,0.00021916,2]
[312906640,1706453439746,-500.0,0.00021916,2]
[312906641,1706453439756,-500.0,0.00021916,2]
[312906642,1706453439765,-500.0,0.00021916,2]
[312906643,1706453439775,-500.0,0.00021916,2]
[312906644,1706453439785,-164.27609953,0.00021916,2]
[312906645,1706453439794,-500.0,0.00021916,2]
[312906646,1706453439803,-500.0,0.00021916,2]
[312906647,1706453439812,-500.0,0.00021916,2]
[312906648,1706453439822,-500.0,0.00021916,2]
[312906649,1706453439831,-500.0,0.00021916,2]
[312906650,1706453439840,-500.0,0.00021916,2]
[312906651,1706453439849,-500.0,0.00021916,2]
[312906652,1706453439859,-447.53970492,0.00021916,2]
[312906653,1706453439869,-500.0,0.00021916,2]
[312906654,1706453439878,-415.76505033,0.00021916,2]
[312906655,1706453439888,-500.0,0.00021916,2]
[312906656,1706453439897,-500.0,0.00021916,2]
[312906657,1706453439907,-160.99225998,0.00021916,2]
[312906658,1706453439916,-586.9872074,0.00021916,2]
[312906659,1706453439925,-298.48147438,0.00021916,2]
[312906660,1706453439935,-500.0,0.00021916,2]
[312906661,1706453439944,-500.0,0.00021916,2]
[312906662,1706453439953,-500.0,0.00021916,2]
[312906663,1706453439961,-500.0,0.00021916,2]
[312906664,1706453439970,-500.0,0.00021916,2]
[312906665,1706453439990,-193.66564597,0.00021916,2]
[312906667,1706453439999,-481.11357031,0.00021916,2]
[312906669,1706453440008,-500.0,0.00021917,2]
[312906671,1706453440018,-711.92584623,0.00021917,2]
[312906673,1706453440027,-500.0,0.00021917,2]
[312906675,1706453440036,-500.0,0.00021917,2]
[312906676,1706453440046,-500.0,0.00021917,2]
[312906677,1706453440055,-500.0,0.00021917,2]
[312906678,1706453440064,-343.25713726,0.00021917,2]
[312906679,1706453440074,-684.47840013,0.00021917,2]
[312906680,1706453440083,-620.96495057,0.00021917,2]
[312906681,1706453440092,-500.0,0.00021917,2]
[312906682,1706453440101,-500.0,0.00021917,2]
[312906683,1706453440110,-507.78936856,0.00021917,2]
[312906684,1706453440195,-500.0,0.00021917,2]
[312906685,1706453440206,-897.64,0.00021917,2]
[312906686,1706453440216,-1002.23887986,0.00021917,2]
[312906687,1706453440226,-500.0,0.00021917,2]
[312906688,1706453440236,-500.0,0.00021917,2]
[312906689,1706453440246,-500.0,0.00021917,2]
[312906690,1706453440255,-153.33165401,0.00021917,2]
[312906691,1706453440266,-500.0,0.00021917,2]
[312906692,1706453440274,-500.0,0.00021917,2]
[312906693,1706453440284,-500.0,0.00021917,2]
[312906694,1706453440293,-500.0,0.00021917,2]
[312906695,1706453440302,-527.14,0.00021917,2]
[312906696,1706453440313,-1390.76,0.00021917,2]
[312906697,1706453440322,-500.0,0.00021917,2]
[312906698,1706453440332,-500.0,0.00021917,2]
[312906699,1706453440342,-270.96680179,0.00021917,2]
[312906700,1706453440352,-500.0,0.00021917,2]
[312906701,1706453440361,-500.0,0.00021917,2]
[312906702,1706453440371,-906.05,0.00021917,2]
[312906703,1706453440380,-500.0,0.00021917,2]
[312906704,1706453440389,-500.0,0.00021917,2]
[312906705,1706453440398,-500.0,0.00021917,2]
[312906706,1706453440407,-1768.69,0.00021917,2]
[312906707,1706453440416,-156.42516188,0.00021917,2]
[312906708,1706453440426,-500.0,0.00021917,2]
[312906709,1706453440436,-500.0,0.00021917,2]
[312906710,1706453440445,-500.0,0.00021917,2]
[312906711,1706453440455,-2156.52,0.00021917,2]
[312906712,1706453440464,-500.0,0.00021917,2]
[312906713,1706453440473,-500.0,0.00021917,2]
[312906714,1706453440482,-5529.41,0.00021917,2]
[312906715,1706453440491,-500.0,0.00021917,2]
[312906716,1706453440500,-500.0,0.00021917,2]
[312906717,1706453440509,-500.0,0.00021917,2]
[312906718,1706453440518,-1757.48,0.00021917,2]
[312906719,1706453440528,-500.0,0.00021917,2]
[312906720,1706453440537,-1181.84,0.00021917,2]
[312906721,1706453440546,-500.0,0.00021917,2]
[312906722,1706453440555,-1161.91,0.00021917,2]
[312906723,1706453440565,-500.0,0.00021917,2]
[312906724,1706453440574,-500.0,0.00021917,2]
[312906726,1706453440583,-500.0,0.00021917,2]
[312906728,1706453440592,-500.0,0.00021917,2]
[312906730,1706453440601,-511.32578597,0.00021917,2]
[312906731,1706453440610,-500.0,0.00021917,2]
[312906732,1706453440620,-500.0,0.00021917,2]
[312906733,1706453440629,-500.0,0.00021917,2]
[312906734,1706453440638,-270.49445318,0.00021917,2]
[312906735,1706453440648,-560.74,0.00021917,2]
[312906736,1706453440657,-500.0,0.00021917,2]
[312906738,1706453440666,-500.0,0.00021917,2]
[312906740,1706453440675,-557.08,0.00021917,2]
[312906741,1706453440685,-500.0,0.00021917,2]
[312906742,1706453440695,-500.0,0.00021917,2]
[312906743,1706453440706,-500.0,0.00021917,2]
[312906744,1706453440715,-152.51532776,0.00021917,2]
[312906745,1706453440724,-1369.41,0.00021917,2]
[312906746,1706453440733,-1904.58,0.00021917,2]
[312906747,1706453440742,-595.27101256,0.00021917,2]
[312906748,1706453440751,-1079.66,0.00021917,2]
[312906749,1706453440761,-500.0,0.00021917,2]
[312906750,1706453440770,-500.0,0.00021917,2]
[312906751,1706453440779,-500.0,0.00021917,2]
[312906752,1706453440790,-500.0,0.00021917,2]
[312906753,1706453440799,-500.0,0.00021917,2]
[312906754,1706453440809,-440.63457018,0.00021917,2]
[312906755,1706453440818,-500.0,0.00021917,2]
[312906756,1706453440827,-500.0,0.00021917,2]
[312906757,1706453440836,-500.0,0.00021917,2]
[312906758,1706453440845,-500.0,0.00021917,2]
[312906759,1706453440854,-500.0,0.00021917,2]
[312906760,1706453440863,-2618.59,0.00021917,2]
[312906761,1706453440873,-193.33149398,0.00021917,2]
[312906762,1706453440882,-476.67319883,0.00021917,2]
[312906763,1706453440891,-500.0,0.00021917,2]
[312906764,1706453440901,-500.0,0.00021917,2]
[312906765,1706453440910,-508.20795299,0.00021917,2]
[312906766,1706453440919,-508.85286137,0.00021917,2]
[312906767,1706453440928,-500.0,0.00021917,2]
[312906768,1706453440937,-500.0,0.00021917,2]
[312906769,1706453440946,-586.16320171,0.00021917,2]
[312906770,1706453440955,-500.0,0.00021917,2]
[312906771,1706453440964,-500.0,0.00021917,2]
[312906772,1706453440973,-500.0,0.00021917,2]
[312906773,1706453440983,-500.0,0.00021917,2]
[312906774,1706453440992,-500.0,0.00021917,2]
[312906775,1706453441001,-500.0,0.00021917,2]
[312906776,1706453441010,-500.0,0.00021917,2]
[312906777,1706453441018,-500.0,0.00021917,2]
[312906778,1706453441028,-200.72682926,0.00021917,2]
[312906779,1706453441037,-915.71,0.00021917,2]
[312906780,1706453441046,-500.0,0.00021917,2]
[312906781,1706453441055,-500.0,0.00021917,2]
[312906782,1706453441064,-500.0,0.00021917,2]
[312906783,1706453441073,-500.0,0.00021917,2]
[312906784,1706453441082,-500.0,0.00021917,2]
[312906785,1706453441091,-1828.36,0.00021917,2]
[312906786,1706453441100,-500.0,0.00021917,2]
[312906787,1706453441109,-500.0,0.00021917,2]
[312906788,1706453441118,-500.0,0.00021917,2]
[312906789,1706453441127,-500.0,0.00021917,2]
[312906790,1706453441136,-500.0,0.00021917,2]
[312906791,1706453441145,-1781.92,0.00021917,2]
[312906792,1706453441154,-819.23,0.00021917,2]
[312906793,1706453441163,-500.0,0.00021917,2]
[312906794,1706453441172,-1024.81,0.00021917,2]
[312906795,1706453441180,-500.0,0.00021917,2]
[312906796,1706453441189,-500.0,0.00021917,2]